[Event "28th Hit Open-A 2024"]
[Site "Nova Gorica"]
[Date "2024.02.02"]
[Round "9.5"]
[White "Beliavsky, Alexander G"]
[Black "Plaskan, Jure"]
[Result "1-0"]
[ECO "D35"]
[WhiteElo "2475"]
[BlackElo "2262"]
[Annotator "ChessBase"]
[PlyCount "87"]
[EventDate "2024.01.22"]
[EventType "swiss"]
[EventCountry "SLO"]
[SourceTitle "playchess.com"]
[Source "ChessBase"]
[SourceQuality "1"]
[TimeControl "5400+30"]

1. c4 {[%emt 0:00:08]} Nf6 {[%emt 0:00:07]} 2. Nc3 {[%emt 0:00:08]} e6 {[%emt 0:00:53]} 3. d4 {[%emt 0:00:34]} d5 {[%emt 0:01:42]} 4. cxd5 {[%emt 0:00:19]} exd5 {[%emt 0:00:02]} 5. Bg5 {[%emt 0:00:09]} Be7 {[%emt 0:00:06]} 6. e3 {[%emt 0:00:14]} c6 {[%emt 0:00:06]} 7. Bd3 {[%emt 0:00:23]} O-O {[%emt 0:00:21]} 8. h3 {[%emt 0:01:48]} Re8 {[%emt 0:01:45]} 9. Bf4 {[%emt 0:01:11]} Nbd7 {[%emt 0:03:04]} 10. Nf3 {[%emt 0:00:53]} a5 {[%emt 0:04:28]} 11. O-O {[%emt 0:01:11]} Nf8 {[%emt 0:07:25]} 12. Bh2 {[%emt 0:04:12]} b5 {[%emt 0:10:10]} 13. Ne5 {[%emt 0:13:18]} Bb7 {[%emt 0:00:09]} 14. Rc1 {[%emt 0:00:08]} N6d7 {[%emt 0:15:48]} 15. Nb1 {[%emt 0:11:54]} Nxe5 {[%emt 0:01:42]} 16. Bxe5 {[%emt 0:00:05]} Bd6 {[%emt 0:19:49]} 17. Bxd6 {[%emt 0:01:15]} Qxd6 {[%emt 0:00:03]} 18. Nd2 {[%emt 0:00:46]} a4 {[%emt 0:07:03]} 19. Nf3 {[%emt 0:01:18]} Ne6 {[%emt 0:00:59]} 20. Re1 {[%emt 0:06:52]} b4 {[%emt 0:03:07]} 21. Re2 {[%emt 0:03:26]} g6 {[%emt 0:08:02]} 22. Rec2 {[%emt 0:00:55]} Ra5 {[%emt 0:01:32]} 23. Qd2 {[%emt 0:03:22]} Rea8 {[%emt 0:01:45]} 24. Bf1 {[%emt 0:01:22]} Nd8 {[%emt 0:05:19]} 25. Ne5 {[%emt 0:02:17]} b3 {[%emt 0:03:48]} 26. axb3 {[%emt 0:00:17]} a3 {[%emt 0:00:34]} 27. b4 {[%emt 0:02:22]} axb2 {[%emt 0:01:53]} 28. Rxb2 {[%emt 0:00:07]} Ra1 {[%emt 0:00:16]} 29. Nd3 {[%emt 0:01:20]} R8a3 {[%emt 0:00:24]} 30. Rxa1 {[%emt 0:04:13]} Rxa1 {[%emt 0:00:06]} 31. Ra2 {[%emt 0:00:05]} Rxa2 {[%emt 0:00:27]} 32. Qxa2 {[%emt 0:00:05]} Bc8 {[%emt 0:00:35]} 33. Qa8 {[%emt 0:06:02]} Qc7 {[%emt 0:02:00]} 34. Qa5 {[%emt 0:01:17]} Ne6 {[%emt 0:01:18]} 35. Ne5 {[%emt 0:03:50]} Qxa5 {[%emt 0:00:39]} 36. bxa5 {[%emt 0:00:18]} c5 {[%emt 0:00:01]} 37. dxc5 {[%emt 0:01:46]} Nxc5 {[%emt 0:00:03]} 38. Nc6 {[%emt 0:00:10]} Bb7 {[%emt 0:00:10]} 39. Nb4 {[%emt 0:01:26]} Kf8 {[%emt 0:00:29]} 40. a6 {[%emt 0:00:07]} Ba8 {[%emt 0:00:03]} 41. a7 {[%emt 0:00:37]} Ne6 {[%emt 0:02:06]} 42. Bb5 {[%emt 0:01:34]} Nd8 {[%emt 0:00:38]} 43. Na6 {[%emt 0:00:34]} Ne6 {[%emt 0:00:07]} 44. Bd7 {[%emt 0:00:42]} 1-0

[Event "28th Hit Open-A 2024"]
[Site "Nova Gorica"]
[Date "2024.02.02"]
[Round "9.6"]
[White "Marchesich, Giovanni"]
[Black "Doric, Darko"]
[Result "1/2-1/2"]
[ECO "B07"]
[WhiteElo "2210"]
[BlackElo "2456"]
[Annotator "ChessBase"]
[PlyCount "82"]
[EventDate "2024.01.22"]
[EventType "swiss"]
[EventCountry "SLO"]
[SourceTitle "playchess.com"]
[Source "ChessBase"]
[SourceQuality "1"]
[TimeControl "5400+30"]

1. e4 {[%emt 0:00:04]} d6 {[%emt 0:00:04]} 2. d4 {[%emt 0:00:16]} Nf6 {[%emt 0:00:06]} 3. Nc3 {[%emt 0:00:10]} e5 {[%emt 0:00:06]} 4. dxe5 {[%emt 0:00:21]} dxe5 {[%emt 0:00:06]} 5. Qxd8+ {[%emt 0:00:08]} Kxd8 {[%emt 0:00:04]} 6. Bc4 {[%emt 0:00:13]} Ke8 {[%emt 0:00:07]} 7. f4 {[%emt 0:00:46]} Bb4 {[%emt 0:05:20]} 8. Bd3 {[%emt 0:01:47]} exf4 {[%emt 0:05:58]} 9. Bxf4 {[%emt 0:01:08]} c6 {[%emt 0:00:14]} 10. Nf3 {[%emt 0:04:48]} Be6 {[%emt 0:01:11]} 11. h3 {[%emt 0:09:47]} Nbd7 {[%emt 0:02:37]} 12. O-O {[%emt 0:03:42]} h6 {[%emt 0:05:05]} 13. Bd2 {[%emt 0:10:03]} Bd6 {[%emt 0:05:57]} 14. Ne2 {[%emt 0:04:18]} Ne5 {[%emt 0:01:17]} 15. Bc3 {[%emt 0:00:19]} Nfd7 {[%emt 0:00:40]} 16. Ned4 {[%emt 0:00:28]} Rd8 {[%emt 0:04:10]} 17. Kh1 {[%emt 0:02:33]} Rg8 {[%emt 0:16:39]} 18. Be2 {[%emt 0:08:20]} a6 {[%emt 0:12:48]} 19. Nf5 {[%emt 0:03:06]} Bc7 {[%emt 0:06:56]} 20. N3d4 {[%emt 0:07:54]} Nc5 {[%emt 0:07:23]} 21. Rae1 {[%emt 0:09:34]} Rd7 {[%emt 0:05:26]} 22. Nf3 {[%emt 0:12:19]} f6 {[%emt 0:11:15]} 23. Bb4 {[%emt 0:05:52]} Nxf3 {[%emt 0:01:08]} 24. Bxf3 {[%emt 0:00:24]} Na4 {[%emt 0:00:12]} 25. b3 {[%emt 0:00:44]} a5 {[%emt 0:00:28]} 26. Ba3 {[%emt 0:00:47]} Nc3 {[%emt 0:00:01]} 27. Bb2 {[%emt 0:00:32]} Be5 {[%emt 0:00:38]} 28. Bg4 {[%emt 0:00:45]} Rd2 {[%emt 0:01:18]} 29. Bxc3 {[%emt 0:01:42]} Bxc3 {[%emt 0:00:12]} 30. Re2 {[%emt 0:00:09]} Rxe2 {[%emt 0:00:54]} 31. Bxe2 {[%emt 0:00:00]} Bxf5 {[%emt 0:06:04]} 32. exf5 {[%emt 0:00:10]} Ke7 {[%emt 0:00:07]} 33. Rd1 {[%emt 0:00:31]} b5 {[%emt 0:00:37]} 34. Bf3 {[%emt 0:01:07]} Rc8 {[%emt 0:00:04]} 35. a4 {[%emt 0:00:46]} Rc7 {[%emt 0:01:21]} 36. Rd3 {[%emt 0:03:48]} Be5 {[%emt 0:00:09]} 37. g4 {[%emt 0:00:22]} b4 {[%emt 0:00:43]} 38. Kg2 {[%emt 0:00:24]} c5 {[%emt 0:00:33]} 39. Bd5 {[%emt 0:00:06]} Bd4 {[%emt 0:00:21]} 40. Rd2 {[%emt 0:00:44]} Kd6 {[%emt 0:00:02]} 41. Bc4 {[%emt 0:00:12]} Re7 {[%emt 0:00:17]} 1/2-1/2

[Event "28th Hit Open-A 2024"]
[Site "Nova Gorica"]
[Date "2024.02.02"]
[Round "9.7"]
[White "Drazic, Sinisa"]
[Black "Ceres, Dragos"]
[Result "0-1"]
[ECO "B50"]
[WhiteElo "2270"]
[BlackElo "2438"]
[Annotator "ChessBase"]
[PlyCount "76"]
[EventDate "2024.01.22"]
[EventType "swiss"]
[EventCountry "SLO"]
[SourceTitle "playchess.com"]
[Source "ChessBase"]
[SourceQuality "1"]
[TimeControl "5400+30"]

1. e4 {[%emt 0:00:36]} c5 {[%emt 0:00:07]} 2. Nf3 {[%emt 0:00:02]} d6 {[%emt 0:00:07]} 3. Bc4 {[%emt 0:00:06]} Nf6 {[%emt 0:00:54]} 4. d3 {[%emt 0:00:01]} e6 {[%emt 0:00:20]} 5. O-O {[%emt 0:00:07]} Nc6 {[%emt 0:00:18]} 6. Nbd2 {[%emt 0:00:09]} g6 {[%emt 0:02:07]} 7. c3 {[%emt 0:00:49]} Bg7 {[%emt 0:00:23]} 8. Bb3 {[%emt 0:00:11]} O-O {[%emt 0:02:18]} 9. Qe2 {[%emt 0:00:05]} b5 {[%emt 0:01:06]} 10. a3 {[%emt 0:00:12]} a5 {[%emt 0:03:16]} 11. Rd1 {[%emt 0:02:46]} a4 {[%emt 0:01:31]} 12. Bc2 {[%emt 0:00:11]} e5 {[%emt 0:03:26]} 13. h3 {[%emt 0:07:17]} Qb6 {[%emt 0:02:25]} 14. b3 {[%emt 0:00:35]} axb3 {[%emt 0:03:06]} 15. Bxb3 {[%emt 0:00:37]} Nh5 {[%emt 0:00:36]} 16. Nf1 {[%emt 0:00:38]} Nf4 {[%emt 0:00:16]} 17. Qb2 {[%emt 0:00:58]} Qc7 {[%emt 0:04:43]} 18. Ne3 {[%emt 0:04:19]} Be6 {[%emt 0:04:28]} 19. Nd5 {[%emt 0:12:31]} Bxd5 {[%emt 0:00:09]} 20. exd5 {[%emt 0:00:08]} Ne7 {[%emt 0:00:29]} 21. Bxf4 {[%emt 0:06:43]} exf4 {[%emt 0:00:15]} 22. Qd2 {[%emt 0:00:26]} b4 {[%emt 0:01:11]} 23. axb4 {[%emt 0:00:03]} Rxa1 {[%emt 0:00:06]} 24. Rxa1 {[%emt 0:00:02]} cxb4 {[%emt 0:00:07]} 25. Rc1 {[%emt 0:01:23]} bxc3 {[%emt 0:01:29]} 26. Qxf4 {[%emt 0:00:02]} Rb8 {[%emt 0:02:40]} 27. Bc4 {[%emt 0:00:47]} Nf5 {[%emt 0:01:09]} 28. Qe4 {[%emt 0:02:11]} Qa7 {[%emt 0:06:30]} 29. d4 {[%emt 0:12:34]} Nxd4 {[%emt 0:00:27]} 30. Bd3 {[%emt 0:00:26]} Nb3 {[%emt 0:06:05]} 31. Rb1 {[%emt 0:01:37]} Nc5 {[%emt 0:00:14]} 32. Rxb8+ {[%emt 0:01:04]} Qxb8 {[%emt 0:00:06]} 33. Qe2 {[%emt 0:00:10]} Nxd3 {[%emt 0:04:52]} 34. Qxd3 {[%emt 0:00:24]} Qb2 {[%emt 0:00:09]} 35. Ne1 {[%emt 0:01:07]} Qd2 {[%emt 0:00:34]} 36. Kf1 {[%emt 0:03:13]} Qxd3+ {[%emt 0:00:08]} 37. Nxd3 {[%emt 0:00:02]} c2 {[%emt 0:00:08]} 38. Ke2 {[%emt 0:00:04]} Bh6 {[%emt 0:00:04]} 0-1

[Event "28th Hit Open-A 2024"]
[Site "Nova Gorica"]
[Date "2024.02.02"]
[Round "9.8"]
[White "Bodrogi, Bendeguz"]
[Black "Cvitan, Ognjen"]
[Result "1/2-1/2"]
[ECO "A49"]
[WhiteElo "2261"]
[BlackElo "2422"]
[Annotator "ChessBase"]
[PlyCount "150"]
[EventDate "2024.01.22"]
[EventType "swiss"]
[EventCountry "SLO"]
[SourceTitle "playchess.com"]
[Source "ChessBase"]
[SourceQuality "1"]
[TimeControl "5400+30"]

1. Nf3 {[%emt 0:00:20]} Nf6 {[%emt 0:01:08]} 2. g3 {[%emt 0:00:15]} g6 {[%emt 0:00:47]} 3. Bg2 {[%emt 0:01:47]} Bg7 {[%emt 0:00:15]} 4. O-O {[%emt 0:00:11]} O-O {[%emt 0:00:11]} 5. d4 {[%emt 0:00:07]} d6 {[%emt 0:01:25]} 6. Nc3 {[%emt 0:00:09]} d5 {[%emt 0:00:59]} 7. Re1 {[%emt 0:00:37]} Bf5 {[%emt 0:00:43]} 8. Ne5 {[%emt 0:27:32]} c6 {[%emt 0:05:17]} 9. a4 {[%emt 0:17:31]} a5 {[%emt 0:07:06]} 10. b3 {[%emt 0:04:48]} Nbd7 {[%emt 0:05:19]} 11. Nxd7 {[%emt 0:16:46]} Qxd7 {[%emt 0:00:49]} 12. Bb2 {[%emt 0:00:15]} Rfe8 {[%emt 0:04:15]} 13. Qc1 {[%emt 0:08:38]} Rac8 {[%emt 0:09:59]} 14. Qd2 {[%emt 0:00:51]} Rcd8 {[%emt 0:02:03]} 15. Rad1 {[%emt 0:01:46]} b6 {[%emt 0:02:42]} 16. Qc1 {[%emt 0:03:23]} h5 {[%emt 0:04:37]} 17. e4 {[%emt 0:01:24]} Nxe4 {[%emt 0:03:30]} 18. Nxe4 {[%emt 0:00:06]} Bxe4 {[%emt 0:00:04]} 19. Bxe4 {[%emt 0:00:09]} dxe4 {[%emt 0:00:01]} 20. Rxe4 {[%emt 0:02:06]} e5 {[%emt 0:00:17]} 21. c3 {[%emt 0:03:19]} exd4 {[%emt 0:01:46]} 22. Rxe8+ {[%emt 0:00:08]} Rxe8 {[%emt 0:00:12]} 23. cxd4 {[%emt 0:00:50]} Re2 {[%emt 0:02:37]} 24. Re1 {[%emt 0:00:28]} Qe6 {[%emt 0:03:12]} 25. Rxe2 {[%emt 0:00:18]} Qxe2 {[%emt 0:00:03]} 26. Bc3 {[%emt 0:01:14]} Qf3 {[%emt 0:01:40]} 27. h4 {[%emt 0:02:15]} c5 {[%emt 0:06:25]} 28. Qd2 {[%emt 0:00:08]} cxd4 {[%emt 0:00:36]} 29. Bxd4 {[%emt 0:00:12]} Bxd4 {[%emt 0:01:10]} 30. Qxd4 {[%emt 0:00:06]} Qxb3 {[%emt 0:00:04]} 31. Qd8+ {[%emt 0:00:16]} Kh7 {[%emt 0:00:22]} 32. Qd7 {[%emt 0:00:06]} Qb1+ {[%emt 0:01:11]} 33. Kg2 {[%emt 0:00:54]} Qe4+ {[%emt 0:00:14]} 34. Kg1 {[%emt 0:00:14]} Kg7 {[%emt 0:01:53]} 35. Qb5 {[%emt 0:00:15]} Qd4 {[%emt 0:00:30]} 36. Qe8 {[%emt 0:00:47]} Qd5 {[%emt 0:00:15]} 37. Kh2 {[%emt 0:01:16]} Kf6 {[%emt 0:03:10]} 38. Kg1 {[%emt 0:01:47]} Qe6 {[%emt 0:01:48]} 39. Qd8+ {[%emt 0:00:53]} Ke5 {[%emt 0:00:44]} 40. Qd3 {[%emt 0:02:22]} Qc6 {[%emt 0:02:07]} 41. Qe3+ {[%emt 0:01:16]} Kf6 {[%emt 0:02:31]} 42. Qd4+ {[%emt 0:00:39]} Ke7 {[%emt 0:00:37]} 43. Qe5+ {[%emt 0:00:29]} Qe6 {[%emt 0:00:14]} 44. Qc7+ {[%emt 0:00:16]} Kf8 {[%emt 0:00:46]} 45. Qc3 {[%emt 0:00:26]} Qd6 {[%emt 0:03:40]} 46. Qc8+ {[%emt 0:02:01]} Ke7 {[%emt 0:00:38]} 47. Qc4 {[%emt 0:01:45]} Qc5 {[%emt 0:01:43]} 48. Qe4+ {[%emt 0:00:04]} Kd8 {[%emt 0:01:35]} 49. Qa8+ {[%emt 0:00:14]} Qc8 {[%emt 0:00:32]} 50. Qd5+ {[%emt 0:00:50]} Qd7 {[%emt 0:00:05]} 51. Qc4 {[%emt 0:00:03]} Qe6 {[%emt 0:01:14]} 52. Qc2 {[%emt 0:00:47]} Qd5 {[%emt 0:00:46]} 53. Qe2 {[%emt 0:00:29]} Kd7 {[%emt 0:01:09]} 54. Kh2 {[%emt 0:00:49]} Qd4 {[%emt 0:04:02]} 55. Qb5+ {[%emt 0:00:14]} Kd6 {[%emt 0:00:50]} 56. Kg1 {[%emt 0:00:09]} Qc5 {[%emt 0:02:08]} 57. Qe8 {[%emt 0:00:41]} Qc1+ {[%emt 0:02:26]} 58. Kh2 {[%emt 0:00:06]} Qc4 {[%emt 0:00:32]} 59. Qf8+ {[%emt 0:01:20]} Kc6 {[%emt 0:03:11]} 60. Qc8+ {[%emt 0:00:44]} Kd5 {[%emt 0:00:14]} 61. Qd8+ {[%emt 0:00:17]} Kc5 {[%emt 0:00:41]} 62. Qe7+ {[%emt 0:00:15]} Kc6 {[%emt 0:02:12]} 63. Qe8+ {[%emt 0:00:20]} Kb7 {[%emt 0:00:51]} 64. Qd7+ {[%emt 0:00:06]} Ka6 {[%emt 0:01:48]} 65. Qe8 {[%emt 0:00:27]} Qd5 {[%emt 0:01:02]} 66. Qc8+ {[%emt 0:00:12]} Ka7 {[%emt 0:00:01]} 67. Qc7+ {[%emt 0:00:49]} Qb7 {[%emt 0:00:04]} 68. Qd6 {[%emt 0:01:38]} Ka6 {[%emt 0:01:14]} 69. Qd3+ {[%emt 0:00:32]} Ka7 {[%emt 0:00:30]} 70. Qd6 {[%emt 0:00:06]} Qf3 {[%emt 0:02:18]} 71. Qc7+ {[%emt 0:00:04]} Ka6 {[%emt 0:00:24]} 72. Qc8+ {[%emt 0:00:24]} Qb7 {[%emt 0:00:07]} 73. Qc4+ {[%emt 0:00:25]} Ka7 {[%emt 0:00:01]} 74. Qb5 {[%emt 0:00:33]} Qe7 {[%emt 0:00:30]} 75. Qc6 {[%emt 0:00:29]} Qb7 {[%emt 0:00:07]} 1/2-1/2

[Event "28th Hit Open-A 2024"]
[Site "Nova Gorica"]
[Date "2024.02.02"]
[Round "9.10"]
[White "Kulkarni Bhakti"]
[Black "Szegedy, Matyas"]
[Result "1-0"]
[ECO "D00"]
[WhiteElo "2364"]
[BlackElo "2129"]
[Annotator "ChessBase"]
[PlyCount "135"]
[EventDate "2024.01.22"]
[EventType "swiss"]
[EventCountry "SLO"]
[SourceTitle "playchess.com"]
[Source "ChessBase"]
[SourceQuality "1"]
[TimeControl "5400+30"]

1. d4 {[%emt 0:04:43]} Nf6 {[%emt 0:00:25]} 2. Nf3 {[%emt 0:00:47]} g6 {[%emt 0:00:33]} 3. Nc3 {[%emt 0:00:23]} d5 {[%emt 0:01:36]} 4. Bf4 {[%emt 0:00:14]} Bg7 {[%emt 0:00:28]} 5. Nb5 {[%emt 0:00:19]} Na6 {[%emt 0:00:21]} 6. e3 {[%emt 0:00:04]} O-O {[%emt 0:01:14]} 7. h3 {[%emt 0:00:08]} Bf5 {[%emt 0:15:22]} 8. Bd3 {[%emt 0:00:32]} Bxd3 {[%emt 0:00:19]} 9. cxd3 {[%emt 0:00:32]} c5 {[%emt 0:01:42]} 10. Be5 {[%emt 0:02:22]} Qa5+ {[%emt 0:07:47]} 11. Nc3 {[%emt 0:00:09]} Rac8 {[%emt 0:00:07]} 12. O-O {[%emt 0:00:58]} Rfd8 {[%emt 0:03:36]} 13. Qd2 {[%emt 0:03:41]} c4 {[%emt 0:05:06]} 14. dxc4 {[%emt 0:11:35]} Rxc4 {[%emt 0:00:10]} 15. Rfc1 {[%emt 0:05:25]} Rdc8 {[%emt 0:01:39]} 16. Qd1 {[%emt 0:02:12]} Nb8 {[%emt 0:05:26]} 17. Nd2 {[%emt 0:05:08]} R4c6 {[%emt 0:01:25]} 18. Nb3 {[%emt 0:07:00]} Qd8 {[%emt 0:03:26]} 19. Nc5 {[%emt 0:06:26]} b6 {[%emt 0:06:10]} 20. Nd3 {[%emt 0:01:21]} Ne4 {[%emt 0:26:29]} 21. Nb4 {[%emt 0:06:14]} Rc4 {[%emt 0:00:10]} 22. Nbxd5 {[%emt 0:14:18]} Nxc3 {[%emt 0:00:33]} 23. Nxc3 {[%emt 0:00:21]} Bxe5 {[%emt 0:00:18]} 24. dxe5 {[%emt 0:00:07]} Qc7 {[%emt 0:00:04]} 25. f4 {[%emt 0:03:11]} Qc5 {[%emt 0:02:29]} 26. Qf3 {[%emt 0:00:26]} b5 {[%emt 0:00:25]} 27. a3 {[%emt 0:03:06]} b4 {[%emt 0:03:03]} 28. axb4 {[%emt 0:00:23]} Qxb4 {[%emt 0:00:06]} 29. Qf2 {[%emt 0:00:48]} Qb7 {[%emt 0:00:43]} 30. Rd1 {[%emt 0:01:19]} Nd7 {[%emt 0:02:23]} 31. Rd4 {[%emt 0:02:50]} Nb6 {[%emt 0:04:22]} 32. Qd2 {[%emt 0:00:29]} R4c7 {[%emt 0:02:35]} 33. Rd8+ {[%emt 0:05:10]} Rxd8 {[%emt 0:00:28]} 34. Qxd8+ {[%emt 0:00:02]} Kg7 {[%emt 0:00:07]} 35. e6 {[%emt 0:06:32]} fxe6 {[%emt 0:01:03]} 36. Qd4+ {[%emt 0:00:02]} Kg8 {[%emt 0:00:32]} 37. Qe5 {[%emt 0:00:59]} Qc6 {[%emt 0:01:19]} 38. Nb5 {[%emt 0:00:06]} Rd7 {[%emt 0:01:42]} 39. Nd4 {[%emt 0:03:42]} Qd6 {[%emt 0:00:30]} 40. Nxe6 {[%emt 0:02:38]} Qxe5 {[%emt 0:01:39]} 41. fxe5 {[%emt 0:00:01]} Rb7 {[%emt 0:01:57]} 42. Rf1 {[%emt 0:00:35]} Rb8 {[%emt 0:00:06]} 43. Rc1 {[%emt 0:00:19]} Nd7 {[%emt 0:00:44]} 44. Rc7 {[%emt 0:00:43]} Nxe5 {[%emt 0:00:04]} 45. Rxe7 {[%emt 0:00:12]} Rxb2 {[%emt 0:00:45]} 46. Rg7+ {[%emt 0:00:09]} Kh8 {[%emt 0:00:04]} 47. Rxa7 {[%emt 0:00:08]} Rb8 {[%emt 0:00:21]} 48. Ng5 {[%emt 0:00:28]} h6 {[%emt 0:00:58]} 49. Rh7+ {[%emt 0:00:49]} Kg8 {[%emt 0:00:03]} 50. Rxh6 {[%emt 0:00:04]} Rb5 {[%emt 0:00:29]} 51. Rh4 {[%emt 0:00:22]} Kg7 {[%emt 0:01:57]} 52. Rf4 {[%emt 0:00:02]} Rb7 {[%emt 0:00:32]} 53. Ne6+ {[%emt 0:00:16]} Kh7 {[%emt 0:00:16]} 54. Ng5+ {[%emt 0:00:32]} Kg7 {[%emt 0:00:04]} 55. Nf3 {[%emt 0:00:05]} Nf7 {[%emt 0:00:52]} 56. h4 {[%emt 0:00:15]} Rb2 {[%emt 0:00:22]} 57. Rd4 {[%emt 0:00:30]} Kf6 {[%emt 0:00:31]} 58. Rf4+ {[%emt 0:00:22]} Kg7 {[%emt 0:00:11]} 59. Nd4 {[%emt 0:00:16]} Ne5 {[%emt 0:00:38]} 60. Ne6+ {[%emt 0:00:31]} Kg8 {[%emt 0:00:17]} 61. Re4 {[%emt 0:00:21]} Nf7 {[%emt 0:00:59]} 62. Rg4 {[%emt 0:00:21]} Ne5 {[%emt 0:00:41]} 63. Rg5 {[%emt 0:00:03]} Rb5 {[%emt 0:00:18]} 64. Nd4 {[%emt 0:00:17]} Ra5 {[%emt 0:00:28]} 65. Nf3 {[%emt 0:00:11]} Ra1+ {[%emt 0:00:42]} 66. Kh2 {[%emt 0:00:05]} Nxf3+ {[%emt 0:00:30]} 67. gxf3 {[%emt 0:00:01]} Kf7 {[%emt 0:00:10]} 68. h5 {[%emt 0:00:24]} 1-0

[Event "28th Hit Open-A 2024"]
[Site "Nova Gorica"]
[Date "2024.02.02"]
[Round "9.11"]
[White "Skrbec, Leon"]
[Black "Lavrencic, Matic"]
[Result "1-0"]
[ECO "D37"]
[WhiteElo "2218"]
[BlackElo "2299"]
[Annotator "ChessBase"]
[PlyCount "81"]
[EventDate "2024.01.22"]
[EventType "swiss"]
[EventCountry "SLO"]
[SourceTitle "playchess.com"]
[Source "ChessBase"]
[SourceQuality "1"]
[TimeControl "5400+30"]

1. Nf3 {[%emt 0:00:10]} d5 {[%emt 0:00:11]} 2. e3 {[%emt 0:00:41]} Nf6 {[%emt 0:05:07]} 3. c4 {[%emt 0:00:08]} e6 {[%emt 0:00:06]} 4. Nc3 {[%emt 0:00:06]} Nbd7 {[%emt 0:01:29]} 5. d4 {[%emt 0:01:10]} a6 {[%emt 0:01:29]} 6. Qc2 {[%emt 0:09:53]} dxc4 {[%emt 0:03:40]} 7. a4 {[%emt 0:00:18]} b6 {[%emt 0:01:08]} 8. Bxc4 {[%emt 0:00:08]} Bb7 {[%emt 0:00:04]} 9. O-O {[%emt 0:04:16]} Bb4 {[%emt 0:01:02]} 10. Rd1 {[%emt 0:04:12]} O-O {[%emt 0:16:38]} 11. Bd3 {[%emt 0:02:09]} Qe7 {[%emt 0:12:03]} 12. e4 {[%emt 0:31:46]} e5 {[%emt 0:03:03]} 13. d5 {[%emt 0:01:38]} Nc5 {[%emt 0:04:39]} 14. Bg5 {[%emt 0:02:03]} Nxd3 {[%emt 0:01:23]} 15. Qxd3 {[%emt 0:00:08]} h6 {[%emt 0:01:12]} 16. Be3 {[%emt 0:06:44]} Nd7 {[%emt 0:09:40]} 17. Nd2 {[%emt 0:02:27]} Bd6 {[%emt 0:03:32]} 18. Nc4 {[%emt 0:00:19]} Kh7 {[%emt 0:01:31]} 19. f4 {[%emt 0:02:07]} g6 {[%emt 0:07:47]} 20. Rf1 {[%emt 0:05:35]} exf4 {[%emt 0:04:02]} 21. Nxd6 {[%emt 0:01:29]} cxd6 {[%emt 0:03:10]} 22. Rxf4 {[%emt 0:00:31]} Ne5 {[%emt 0:05:33]} 23. Qe2 {[%emt 0:00:29]} b5 {[%emt 0:01:12]} 24. a5 {[%emt 0:06:14]} Bc8 {[%emt 0:05:11]} 25. Bd4 {[%emt 0:11:11]} f5 {[%emt 0:03:49]} 26. exf5 {[%emt 0:00:08]} Bxf5 {[%emt 0:00:09]} 27. Re1 {[%emt 0:00:04]} Rae8 {[%emt 0:00:35]} 28. Ne4 {[%emt 0:00:40]} Qd7 {[%emt 0:03:32]} 29. Qf1 {[%emt 0:05:14]} g5 {[%emt 0:01:22]} 30. Nxd6 {[%emt 0:00:29]} gxf4 {[%emt 0:00:26]} 31. Nxe8 {[%emt 0:00:27]} Bd3 {[%emt 0:00:36]} 32. Qf2 {[%emt 0:00:20]} Ng4 {[%emt 0:00:28]} 33. Qf3 {[%emt 0:00:48]} Bg6 {[%emt 0:00:24]} 34. Ng7 {[%emt 0:00:03]} Rc8 {[%emt 0:00:44]} 35. h3 {[%emt 0:00:10]} Ne3 {[%emt 0:00:10]} 36. Bxe3 {[%emt 0:00:20]} fxe3 {[%emt 0:00:05]} 37. Ne6 {[%emt 0:00:03]} Qf7 {[%emt 0:01:16]} 38. Qxe3 {[%emt 0:00:30]} Rc2 {[%emt 0:00:26]} 39. Rf1 {[%emt 0:00:06]} Qb7 {[%emt 0:00:24]} 40. Nf8+ {[%emt 0:00:07]} Kg7 {[%emt 0:00:03]} 41. Qe5+ {[%emt 0:00:05]} 1-0

[Event "28th Hit Open-A 2024"]
[Site "Nova Gorica"]
[Date "2024.02.02"]
[Round "9.12"]
[White "Stevanic, David"]
[Black "Kozlovic, Jernej"]
[Result "0-1"]
[ECO "C52"]
[WhiteElo "2294"]
[BlackElo "2174"]
[Annotator "ChessBase"]
[PlyCount "62"]
[EventDate "2024.01.22"]
[EventType "swiss"]
[EventCountry "SLO"]
[SourceTitle "playchess.com"]
[Source "ChessBase"]
[SourceQuality "1"]
[TimeControl "5400+30"]

1. e4 {[%emt 0:00:01]} e5 {[%emt 0:00:06]} 2. Nf3 {[%emt 0:00:05]} Nc6 {[%emt 0:00:11]} 3. Bc4 {[%emt 0:00:04]} Bc5 {[%emt 0:00:07]} 4. b4 {[%emt 0:00:05]} Bxb4 {[%emt 0:00:36]} 5. c3 {[%emt 0:00:06]} Ba5 {[%emt 0:01:24]} 6. d4 {[%emt 0:00:26]} exd4 {[%emt 0:01:50]} 7. Qb3 {[%emt 0:01:30]} Qf6 {[%emt 0:02:37]} 8. O-O {[%emt 0:03:15]} Bb6 {[%emt 0:02:06]} 9. e5 {[%emt 0:21:17]} Qg6 {[%emt 0:01:18]} 10. Ng5 {[%emt 0:00:07]} Nh6 {[%emt 0:06:01]} 11. f4 {[%emt 0:00:12]} Na5 {[%emt 0:06:47]} 12. f5 {[%emt 0:06:35]} Qxg5 {[%emt 0:06:09]} 13. Bxg5 {[%emt 0:16:15]} Nxb3 {[%emt 0:00:14]} 14. f6 {[%emt 0:02:18]} g6 {[%emt 0:10:50]} 15. Bxh6 {[%emt 0:17:44]} Nxa1 {[%emt 0:00:53]} 16. Bg7 {[%emt 0:11:13]} Rg8 {[%emt 0:01:43]} 17. Kh1 {[%emt 0:08:57]} Nc2 {[%emt 0:00:44]} 18. Bb3 {[%emt 0:01:23]} Ne3 {[%emt 0:00:09]} 19. Rf4 {[%emt 0:01:16]} d3 {[%emt 0:01:23]} 20. Nd2 {[%emt 0:00:09]} Nf5 {[%emt 0:00:26]} 21. Ne4 {[%emt 0:00:29]} Nxg7 {[%emt 0:00:52]} 22. Bxf7+ {[%emt 0:00:27]} Kf8 {[%emt 0:01:44]} 23. Bxg8 {[%emt 0:06:04]} Kxg8 {[%emt 0:02:27]} 24. Ng5 {[%emt 0:01:56]} Ne6 {[%emt 0:00:20]} 25. f7+ {[%emt 0:00:16]} Kf8 {[%emt 0:00:08]} 26. Nxh7+ {[%emt 0:00:11]} Kg7 {[%emt 0:00:23]} 27. f8=Q+ {[%emt 0:00:41]} Nxf8 {[%emt 0:00:05]} 28. Nf6 {[%emt 0:00:53]} d2 {[%emt 0:00:35]} 29. Ne8+ {[%emt 0:00:16]} Kh6 {[%emt 0:00:29]} 30. Rf1 {[%emt 0:00:26]} d6 {[%emt 0:00:30]} 31. exd6 {[%emt 0:00:20]} Bg4 {[%emt 0:00:19]} 0-1

[Event "28th Hit Open-A 2024"]
[Site "Nova Gorica"]
[Date "2024.02.02"]
[Round "9.13"]
[White "Ashwath, R.."]
[Black "Zupancic, Jernej"]
[Result "1/2-1/2"]
[ECO "E21"]
[WhiteElo "2284"]
[BlackElo "2211"]
[Annotator "RC"]
[PlyCount "35"]
[EventDate "2024.01.22"]
[EventType "swiss"]
[EventCountry "SLO"]
[SourceTitle "playchess.com"]
[Source "ChessBase"]
[SourceQuality "1"]
[TimeControl "5400+30"]

1. d4 {[%emt 0:06:19]} Nf6 {[%emt 0:00:07]} 2. c4 {[%emt 0:00:06]} e6 {[%emt 0:00:06]} 3. Nc3 {[%emt 0:00:04]} Bb4 {[%emt 0:00:09]} 4. Nf3 {[%emt 0:00:29]} b6 {[%emt 0:00:09]} 5. g3 {[%emt 0:03:20]} Bb7 {[%emt 0:06:14]} 6. Bg2 {[%emt 0:00:41]} O-O {[%emt 0:00:15]} 7. Qb3 {[%emt 0:02:33]} c5 {[%emt 0:02:50]} 8. a3 {[%emt 0:14:10]} Bxc3+ {[%emt 0:00:10]} 9. Qxc3 {[%emt 0:01:43]} d6 {[%emt 0:03:08]} 10. O-O {[%emt 0:03:22]} Qe7 {[%emt 0:04:50]} 11. dxc5 {[%emt 0:06:29]} dxc5 {[%emt 0:01:11]} 12. Bg5 {[%emt 0:05:54]} Nc6 {[%emt 0:06:11]} 13. e3 {[%emt 0:09:04]} h6 {[%emt 0:02:12]} 14. Bxf6 {[%emt 0:00:49]} Qxf6 {[%emt 0:00:18]} 15. Qxf6 {[%emt 0:00:14]} gxf6 {[%emt 0:00:08]} 16. Nd2 {[%emt 0:00:22]} Rfd8 {[%emt 0:01:41]} 17. Rfd1 {[%emt 0:00:59]} Kf8 {[%emt 0:00:27]} 18. b4 {[%emt 0:09:47]} 1/2-1/2